bitfinex/quotes_ETHUSD_20260225
["timestamp","ask_amount","ask_price","bid_price","bid_amount"]
[1772042705041,1.2118514,2063.0,2062.2,5.93449308]
[1772042705204,1.2118514,2063.0,2062.4,5.93449308]
[1772042705819,1.21165123,2063.3,2062.6,5.93449308]
[1772042706021,1.21165123,2063.3,2062.8,5.93449308]
[1772042706397,1.21129899,2063.9,2062.9,7.1463578]
[1772042706628,1.21129899,2063.9,2062.9,5.93449308]
[1772042706831,3.30034594,2063.8,2062.9,5.93449308]
[1772042707421,1.21129899,2063.9,2063.0,20.52054608]
[1772042707600,1.21129899,2063.9,2063.0,5.93449308]
[1772042708146,3.30034594,2064.3,2063.2,5.93449308]
[1772042708528,1.21112295,2064.2,2063.2,5.93449308]
[1772042709409,5.27434594,2064.1,2063.2,5.93449308]
[1772042709850,1.21112295,2064.2,2063.2,7.14619119]
[1772042710050,1.21112295,2064.2,2063.4,5.93449308]
[1772042710568,1.21112295,2064.2,2063.0,7.14629563]
[1772042710730,4.84449181,2064.3,2063.1,5.93449308]
[1772042710930,5.27234594,2064.2,2063.1,5.93449308]
[1772042711102,3.30034594,2064.2,2063.1,5.93449308]
[1772042711306,1.972,2064.1,2063.1,7.14625452]
[1772042711506,4.84449181,2064.3,2063.1,7.14625452]
[1772042712034,1.971,2064.2,2063.2,14.73624008]
[1772042712332,1.971,2064.2,2063.2,5.93449308]
[1772042712735,1.21118162,2064.1,2063.2,7.14618311]
[1772042713404,1.21118162,2064.1,2063.2,7.1462006]
[1772042713804,3.30034594,2063.9,2062.8,5.93449308]
[1772042714008,3.30034594,2064.0,2062.8,5.93449308]
[1772042714240,7.76129743,2064.0,2062.8,5.93449308]
[1772042715124,3.30034594,2063.4,2062.4,5.93449308]
[1772042715325,1.968,2063.3,2062.4,5.93449308]
[1772042715519,1.968,2063.3,2062.0,5.93449308]
[1772042715520,3.30034594,2063.1,2062.0,5.93449308]
[1772042715715,3.30034594,2063.1,2062.0,7.14690019]
[1772042715920,1.968,2063.1,2062.0,7.14687162]
[1772042716340,1.968,2063.1,2062.1,5.93449308]
[1772042717047,1.21182743,2063.0,2062.1,5.93449308]
[1772042717247,1.21182743,2063.0,2062.1,7.14682974]
[1772042717749,1.21165123,2063.3,2062.3,5.93449308]
[1772042718139,1.21165123,2063.3,2062.4,30.0]
[1772042718344,1.21165123,2063.3,2062.5,5.93449308]
[1772042719222,1.21141638,2063.7,2062.7,5.93449308]
[1772042719844,4.51176232,2063.7,2062.7,5.93449308]
[1772042720054,0.002,2063.3,2062.7,5.93449308]
[1772042721151,0.94041638,2063.7,2062.9,5.93449308]
[1772042721757,4.84514617,2064.1,2063.1,5.93449308]
[1772042721928,8.14549211,2064.1,2063.1,5.93449308]
[1772042722128,3.30034594,2063.7,2062.5,5.93449308]
[1772042722328,5.98505096,2063.8,2062.5,5.93449308]
[1772042722528,3.30034594,2064.0,2062.7,5.93449308]
[1772042722931,5.98505096,2063.9,2062.7,5.93449308]
[1772042723231,5.98505096,2063.9,2062.2,4.51264348]
[1772042723232,3.30034594,2063.4,2062.3,5.93449308]
[1772042723435,5.26434594,2063.6,2062.3,5.93449308]
[1772042723637,1.21147509,2063.6,2062.4,1.21217998]
[1772042723843,9.16052605,2063.6,2062.3,7.14668573]
[1772042724544,9.16052605,2063.6,2062.3,9.45568573]
[1772042724724,9.16052605,2063.6,2062.4,5.93449308]
[1772042725524,7.19652605,2063.6,2062.4,5.93449308]
[1772042725769,7.19652605,2063.6,2062.5,1.21212121]
[1772042725934,1.21147509,2063.6,2062.6,6.16078077]
[1772042726662,1.21147509,2063.6,2062.7,30.0]
[1772042726954,1.21147509,2063.6,2062.8,6.16078077]
[1772042727156,1.21147509,2063.6,2062.8,8.46878077]
[1772042727475,1.21147509,2063.6,2062.9,6.16078077]
[1772042727764,3.17635768,2063.9,2063.0,1.21182743]
[1772042728073,3.17635768,2063.9,2062.7,1.21197578]
[1772042728074,4.84543213,2063.8,2062.7,1.21197578]
[1772042728276,4.84543213,2063.8,2062.7,3.51897578]
[1772042729355,6.80843213,2063.8,2062.8,6.16078077]
[1772042729560,6.80843213,2063.8,2062.9,6.16078077]
[1772042729959,6.80843213,2063.8,2062.9,7.37266013]
[1772042730577,6.80843213,2063.8,2062.9,7.34657216]
[1772042730865,4.84543213,2063.8,2062.9,7.34657216]
[1772042731645,4.84543213,2063.8,2062.9,6.1346928]
[1772042731847,4.84543213,2063.8,2062.9,7.34657461]
[1772042732345,3.17506428,2064.3,2063.1,6.09184924]
[1772042732739,3.17506428,2064.3,2063.2,8.39784924]
[1772042733144,3.17506428,2064.3,2063.3,6.09184924]
[1772042733858,3.17506428,2064.3,2063.4,1.21159251]
[1772042734365,0.002,2063.6,2063.4,1.21159251]
[1772042734673,0.002,2063.6,2063.3,7.30349812]
[1772042734871,0.002,2063.6,2062.6,10.93992156]
[1772042735048,0.002,2063.6,2062.7,36.09184924]
[1772042735251,0.002,2063.6,2062.7,6.09184924]
[1772042735978,0.002,2063.6,2062.8,7.30379416]
[1772042738085,0.002,2063.6,2062.8,9.60679416]
[1772042738276,0.002,2063.6,2062.8,9.60678845]
[1772042738984,0.002,2063.6,2062.8,8.39484924]
[1772042739160,0.002,2063.6,2062.8,9.60678806]
[1772042739484,0.002,2063.6,2062.9,6.09184924]
[1772042739687,0.002,2063.6,2063.0,6.09184924]
[1772042740684,0.002,2063.6,2062.8,2.303]
[1772042741083,0.002,2063.6,2062.8,3.51493945]
[1772042741673,0.002,2063.6,2062.8,9.60678869]
[1772042742387,3.30234594,2063.6,2062.5,9.60292287]
[1772042742586,0.002,2063.6,2062.6,6.09184924]
[1772042742765,0.002,2063.6,2062.7,1.21200368]
[1772042743984,0.002,2063.6,2062.7,7.30385292]
[1772042744386,0.002,2063.6,2062.8,30.0]
[1772042744571,0.002,2063.6,2062.9,6.09184924]
[1772042745065,0.002,2063.6,2063.0,1.21182743]
[1772042745263,0.002,2063.6,2063.0,7.30367667]
[1772042745470,0.94135768,2063.8,2063.2,6.09184924]
[1772042745671,1.21112295,2064.2,2063.2,6.09184924]
[1772042747305,6.29445457,2064.1,2062.8,1.21194492]
[1772042747491,3.30034594,2063.7,2062.8,1.21194492]
[1772042747700,3.30034594,2063.7,2062.7,7.30380493]
[1772042748405,3.30034594,2063.7,2062.5,6.083]
[1772042748406,6.29445457,2063.3,2062.5,1.21311035]
[1772042748576,6.29445457,2063.3,2062.5,0.001]
[1772042748981,6.29445457,2063.0,2062.3,0.001]
[1772042749176,1.946,2063.3,2061.8,1.21250446]
[1772042749177,6.29445457,2062.7,2061.8,1.21250446]
[1772042749382,1.21206244,2062.6,2061.7,7.30440453]
[1772042749699,1.21206244,2062.6,2061.7,9.59540453]
[1772042749929,4.84793133,2062.8,2062.6,0.001]
[1772042750089,4.84793133,2062.8,2061.8,6.09184924]
[1772042750273,1.21194492,2062.9,2061.9,8.38184924]
[1772042750604,9.86032385,2062.9,2062.4,0.001]
[1772042752916,3.56586928,2062.9,2062.4,0.001]
[1772042753133,4.84716927,2063.1,2062.4,0.001]
[1772042755594,4.84716927,2063.1,2062.5,1.21212121]
[1772042755898,4.84716927,2063.1,2062.4,7.22829665]
[1772042756342,1.21176869,2063.1,2062.4,7.22829665]
[1772042756695,1.21176869,2063.1,2062.4,0.001]
[1772042756897,3.56569305,2063.1,2062.4,0.001]
[1772042757522,1.21176869,2063.1,2062.4,0.001]
[1772042758421,4.84707479,2063.3,2062.4,6.01616283]
[1772042758422,4.84683888,2063.3,2062.4,6.01616283]
[1772042760233,1.21165123,2063.4,2062.4,6.01616283]
[1772042760929,7.30232156,2063.4,2062.4,5.5914046]
[1772042761135,7.30232156,2063.4,2062.4,3.22832163]
[1772042761431,7.30232156,2063.4,2062.4,1.5914046]
[1772042761736,7.30232156,2063.4,2062.5,28.36308297]
[1772042761934,7.30232156,2063.4,2062.5,0.36308297]
[1772042762116,7.30232156,2063.4,2062.4,31.2121588]
[1772042762310,7.30232156,2063.4,2062.5,28.0]
[1772042762820,7.30232156,2063.4,2062.5,30.0]
[1772042763041,7.30232156,2063.4,2062.5,28.0]
[1772042763411,7.30232156,2063.4,2062.5,30.0]
[1772042763708,7.30232156,2063.4,2062.5,28.0]
[1772042763911,7.30232156,2063.4,2062.5,30.0]
[1772042764743,2.35392436,2062.8,2062.1,0.001]
[1772042764911,8.44459469,2062.8,2062.1,0.001]
[1772042765233,2.35392436,2062.8,2062.1,0.001]
[1772042765405,1.94,2062.9,2061.5,6.01516283]
[1772042765406,6.09067033,2062.5,2061.5,6.01516283]
[1772042765612,6.09067033,2062.5,2061.6,2.085]
[1772042765841,6.09067033,2062.5,2061.5,2.273]
[1772042766710,1.21217998,2062.4,2061.5,2.273]
[1772042767039,6.09067033,2062.1,2061.1,2.273]
[1772042767238,6.09067033,2062.1,2061.1,0.001]
[1772042767452,6.09067033,2061.5,2060.3,1.21336332]
[1772042767635,1.939,2061.8,2060.7,6.01516283]
[1772042767811,1.939,2061.8,2060.9,36.01516283]
[1772042768148,6.09067033,2062.0,2060.8,2.35392436]
[1772042768317,6.09067033,2062.0,2060.7,20.362]
[1772042768513,6.09067033,2061.8,2060.7,11.271]
[1772042768715,8.44459469,2061.6,2060.5,3.48729373]
[1772042768926,6.09067033,2061.5,2060.5,3.48729757]
[1772042769135,6.09067033,2061.5,2060.3,6.01516283]
[1772042769320,8.44459469,2061.3,2060.3,9.50357297]
[1772042769632,6.09067033,2061.3,2060.3,7.22857297]
[1772042769834,6.09067033,2061.3,2060.4,2.275]
[1772042770236,6.09067033,2061.3,2060.3,3.48741014]
[1772042770411,8.44459469,2061.2,2060.2,1.21345141]
[1772042770616,1.21294454,2061.1,2060.3,3.48640607]
[1772042772142,1.21294454,2061.1,2060.3,2.273]
[1772042772515,1.21294454,2061.1,2060.3,3.48641222]
[1772042772839,1.21294454,2061.1,2060.3,3.48541222]
[1772042773642,1.21294454,2061.1,2060.3,3.48441222]
[1772042774245,1.936,2061.4,2060.4,36.01516283]
[1772042774246,1.21276802,2061.4,2060.4,36.01516283]
[1772042774447,1.21276802,2061.4,2060.7,30.0]
[1772042774629,1.21259155,2061.7,2060.9,30.0]
[1772042774830,1.21241513,2062.0,2061.1,30.0]
[1772042775051,1.21241513,2062.0,2061.1,36.01516283]
[1772042775238,1.21241513,2062.0,2061.2,6.01516283]
[1772042775552,1.21241513,2062.0,2061.3,2.271]
[1772042776335,1.21241513,2062.0,2061.3,30.0]
[1772042776556,1.21241513,2062.0,2061.4,2.272]
[1772042776936,4.84897003,2062.3,2061.5,1.21270919]
[1772042777137,4.84897003,2062.3,2061.4,3.48472182]
[1772042778325,1.21223876,2062.3,2061.5,36.01516283]
[1772042778522,4.8473382,2063.0,2061.9,30.0]
[1772042778731,4.8473382,2063.0,2062.0,8.28816283]
[1772042778937,4.8473382,2063.0,2062.1,30.0]
[1772042779149,4.8473382,2063.0,2062.2,1.21229754]
[1772042779459,2.35392436,2062.6,2061.7,1.21259155]
[1772042779761,2.35392436,2062.6,2061.8,7.224]
[1772042781155,1.21212121,2062.5,2061.8,7.224]
[1772042781455,1.21212121,2062.5,2061.8,1.21253061]
[1772042782373,6.09267033,2063.2,2061.8,7.22769344]
[1772042782554,4.84708285,2063.1,2062.0,30.0]
[1772042783075,4.84708285,2063.1,2062.2,1.21229754]
[1772042783237,1.21176869,2063.1,2062.2,1.21229754]
[1772042783539,1.21176869,2063.1,2062.2,7.22746037]
[1772042785062,9.65636338,2063.1,2062.1,2.271]
[1772042785255,9.65636338,2063.1,2062.1,3.48331049]
[1772042785443,9.65636338,2063.1,2062.2,30.0]
[1772042786129,9.65636338,2063.1,2062.2,2.27]
[1772042786746,9.65636338,2063.1,2061.7,38.54189524]
[1772042786747,8.59239068,2062.8,2061.7,38.54189524]
[1772042787047,8.59239068,2062.8,2061.4,1.21270919]
[1772042787048,8.59239068,2062.6,2061.6,2.269]
[1772042787340,2.35392436,2062.4,2061.6,3.48163273]
[1772042787669,1.21212121,2062.5,2061.6,3.48263273]
[1772042787847,1.21212121,2062.5,2061.6,3.48264877]
[1772042788360,1.21212121,2062.5,2061.6,1.21264877]
[1772042788558,7.45058753,2062.5,2061.6,1.21264877]
[1772042788763,7.45058753,2062.5,2061.5,7.27166312]
[1772042788963,7.45058753,2062.5,2061.5,6.059]
[1772042789366,7.45058753,2062.5,2061.4,5.00273744]
[1772042789564,2.35392436,2062.3,2061.4,5.00276378]
[1772042789749,8.59239068,2062.3,2061.4,5.00276378]
[1772042790074,8.59239068,2062.3,2061.4,3.79]
[1772042790273,2.35392436,2062.1,2061.1,3.47994454]
[1772042790444,8.59239068,2062.3,2061.2,32.266]
[1772042790650,8.59239068,2062.3,2061.2,2.266]
[1772042791274,1.21229754,2062.2,2061.2,3.47885635]
[1772042791887,7.45076386,2062.2,2061.3,2.267]
[1772042792280,7.45076386,2062.2,2061.3,2.268]
[1772042792481,0.002,2062.1,2061.4,30.0]
[1772042792788,0.002,2062.1,2061.4,6.19491066]
[1772042793395,10.21670521,2062.5,2061.4,6.19491066]
[1772042793396,4.84787824,2062.8,2061.8,6.19491066]
[1772042793593,0.002,2062.6,2062.0,6.19491066]
[1772042794848,0.94288981,2062.9,2062.2,6.19491066]
[1772042795480,4.84719751,2063.1,2062.3,1.21223876]
[1772042796151,4.84719751,2063.1,2062.4,2.265]
[1772042796595,1.21176869,2063.1,2062.4,2.265]
[1772042796756,1.21372201,2063.2,2062.5,30.0]
[1772042796951,0.002,2063.2,2062.5,36.19491066]
[1772042797152,0.002,2063.4,2062.7,36.19491066]
[1772042797353,0.002,2063.4,2062.8,30.0]
[1772042797354,1.21359559,2063.4,2062.8,30.0]
[1772042797581,0.002,2063.4,2062.9,2.268]
[1772042797762,0.002,2063.4,2063.0,2.268]
[1772042798353,0.002,2063.4,2062.8,1.21191429]
[1772042798687,0.002,2063.4,2063.0,2.268]
[1772042799285,0.002,2063.4,2063.0,2.267]
[1772042799584,0.002,2063.4,2063.0,3.47882344]
[1772042799882,0.001,2063.4,2062.8,4.84763855]
[1772042800061,0.001,2063.4,2062.9,2.266]
[1772042801388,0.001,2063.4,2063.0,2.266]
[1772042801773,0.001,2063.4,2063.0,3.47779396]
[1772042802087,1.20841638,2063.7,2063.1,2.265]
[1772042802258,1.20841638,2063.7,2062.7,6.19491066]
[1772042802460,3.56234074,2063.7,2062.8,2.265]
[1772042803064,3.56234074,2063.7,2062.9,2.264]
[1772042803984,3.56234074,2063.7,2062.8,2.263]
[1772042804187,1.21142128,2063.7,2063.0,6.19491066]
[1772042805792,1.21142128,2063.7,2063.1,2.261]
[1772042806376,4.84522964,2063.9,2063.1,2.261]
[1772042806563,4.84522964,2063.9,2063.2,2.26]
[1772042806770,4.84522964,2063.9,2063.0,6.19491066]
[1772042806977,0.002,2063.5,2063.1,2.26]
[1772042808496,0.001,2063.5,2063.1,2.261]
[1772042810599,0.001,2063.5,2063.1,3.47275792]
[1772042810893,0.001,2063.5,2063.1,2.261]
[1772042811095,0.001,2063.5,2063.0,7.40668996]
[1772042811391,0.002,2063.7,2063.1,8.45891066]
[1772042811579,4.84222964,2063.9,2063.2,6.19491066]
[1772042811778,1.21129899,2063.9,2063.2,6.19491066]
[1772042812098,0.002,2064.1,2063.7,30.0]
[1772042812273,0.002,2064.1,2063.6,2.264]
[1772042812274,0.94322933,2064.1,2063.6,2.264]
[1772042812475,1.21112621,2064.2,2063.6,3.47542983]
[1772042812698,1.21112621,2064.2,2063.6,3.47547274]
[1772042812996,4.30528866,2064.3,2063.6,3.47547274]
[1772042813297,0.94100561,2064.4,2063.7,39.48560099]
[1772042813495,1.21293204,2064.6,2063.8,6.19491066]
[1772042814403,1.21079239,2064.8,2063.9,6.19491066]
[1772042814606,5.93778085,2064.9,2064.0,9.67215097]
[1772042815103,0.002,2064.9,2064.2,30.0]
[1772042815310,0.002,2064.9,2064.2,6.19491066]
[1772042816380,7.206518,2065.0,2064.2,27.699]
[1772042816701,6.26486425,2064.9,2064.2,2.267]
[1772042818502,4.84449881,2065.1,2064.3,2.266]
[1772042818503,7.47549287,2065.1,2064.3,2.266]
[1772042818699,7.47549287,2065.1,2064.4,2.266]
[1772042819394,1.21062862,2065.1,2064.4,2.266]
[1772042820520,0.94262862,2065.1,2064.4,2.266]
[1772042820728,7.36660973,2065.3,2064.5,36.49258691]
[1772042820729,0.94052522,2065.3,2064.5,36.49258691]
[1772042820894,6.26486425,2065.7,2064.7,16.932]
[1772042820895,1.20930209,2065.6,2064.7,16.932]
[1772042821094,1.20930209,2065.6,2064.8,2.265]
[1772042821095,7.47416634,2065.6,2064.8,2.265]
[1772042821285,0.002,2065.2,2064.8,2.265]
[1772042821488,7.20416634,2065.6,2064.8,2.265]
[1772042822316,0.93930209,2065.6,2064.9,21.163]
[1772042822495,6.26486425,2065.5,2064.6,30.0]
[1772042822699,6.26486425,2064.7,2063.8,30.0]
[1772042822896,6.26486425,2064.7,2063.4,6.49258691]
[1772042823090,6.26486425,2064.4,2063.4,6.49258691]
[1772042823293,6.26486425,2064.7,2063.8,6.49258691]
[1772042823514,1.21077101,2064.8,2064.0,30.0]
[1772042823820,1.21077101,2064.8,2063.4,30.0]
[1772042823821,7.47563526,2064.8,2063.4,30.0]
[1772042824116,6.26486425,2064.6,2063.6,30.0]
[1772042824501,6.26486425,2064.6,2063.5,30.0]
[1772042824715,6.26486425,2064.3,2063.6,2.267]
[1772042825020,6.26486425,2065.4,2063.9,30.0]
[1772042825216,6.26486425,2065.4,2063.9,36.49258691]
[1772042825422,6.26486425,2065.1,2064.0,2.267]
[1772042825723,6.26486425,2064.5,2063.4,30.0]
[1772042825897,6.26486425,2064.2,2063.4,13.548]
[1772042826096,6.26486425,2063.9,2063.3,0.001]
[1772042826498,6.26486425,2064.5,2063.4,30.0]
[1772042826713,1.21100561,2064.4,2063.5,1.2115338]
[1772042828110,1.21100561,2064.4,2063.6,2.271]
[1772042828709,1.21100561,2064.4,2063.7,2.271]
[1772042829134,1.21100561,2064.4,2063.7,3.4824073]
[1772042829311,1.21100561,2064.4,2063.8,2.27]
[1772042829715,1.2109817,2064.5,2063.8,2.27]
[1772042829924,1.2109817,2064.5,2063.9,30.0]
[1772042830125,7.47584595,2064.5,2063.8,2.27]
[1772042830840,1.2109817,2064.5,2063.8,2.27]
[1772042831043,1.2109817,2064.5,2063.8,3.48135261]
[1772042831044,0.9409817,2064.5,2063.8,3.48135261]
[1772042831212,4.57438271,2064.7,2063.9,30.0]
[1772042832041,7.47569391,2064.8,2064.1,30.0]
[1772042832042,1.21079791,2064.8,2064.1,30.0]
[1772042832943,6.75684953,2065.0,2064.2,8.764]
[1772042833141,1.21071238,2064.9,2064.1,1.21117333]
[1772042833336,1.21071238,2064.9,2064.2,2.274]
[1772042834058,4.84308459,2065.7,2064.3,36.49258691]
[1772042834059,8.17886425,2065.5,2064.3,36.49258691]
[1772042834258,8.17886425,2065.5,2064.2,2.274]
[1772042834259,1.66137156,2065.4,2064.5,6.49258691]
[1772042834418,0.45095228,2065.3,2064.7,36.49258691]
[1772042834630,0.94238765,2065.5,2064.8,2.274]
[1772042834853,0.45082221,2065.4,2064.8,2.274]
[1772042835156,0.93947331,2065.4,2064.8,3.48477042]
[1772042835357,0.93947331,2065.4,2064.8,3.48476448]
[1772042835560,0.93947331,2065.4,2064.4,4.84401502]
[1772042835561,0.45077533,2065.3,2064.5,19.048]
[1772042835741,0.45077533,2065.3,2064.4,1.21097271]
[1772042835742,10.00632991,2065.2,2064.3,1.21106337]
[1772042835942,0.4507994,2065.1,2064.5,2.277]
[1772042836144,6.26486425,2065.2,2064.5,2.277]
[1772042836352,0.93947331,2065.4,2064.5,2.277]
[1772042836556,0.45081595,2065.3,2064.5,2.277]
[1772042836740,0.93947331,2065.4,2064.6,30.0]
[1772042837066,1.21046255,2065.4,2064.7,1.21082966]
[1772042837448,1.21046255,2065.4,2064.6,30.0]
[1772042837651,1.21046255,2065.4,2064.7,2.28]
[1772042838536,7.4753268,2065.4,2064.7,2.281]
[1772042838774,4.57144274,2065.6,2064.8,30.0]
[1772042838933,4.57144274,2065.6,2064.2,30.0]
[1772042838934,6.26486425,2065.1,2064.2,30.0]
[1772042839137,6.26486425,2064.8,2064.1,2.282]
[1772042839553,6.26486425,2064.8,2064.1,3.4931699]
[1772042839860,6.26486425,2064.8,2064.1,3.49317946]
[1772042840237,6.26486425,2064.8,2064.1,2.282]
[1772042841170,1.21082966,2064.7,2064.1,3.49314055]
[1772042841541,1.21080969,2064.8,2064.1,3.49314055]
[1772042842068,1.2107513,2064.9,2064.2,30.0]
[1772042842270,10.76630588,2064.9,2064.1,2.282]
[1772042843274,7.47561555,2064.9,2064.1,2.282]
[1772042843444,7.47528353,2065.4,2064.2,36.49258691]
[1772042843639,6.26486425,2065.3,2064.3,2.281]
[1772042843841,6.26486425,2065.3,2064.4,30.0]
[1772042845348,7.47540075,2065.2,2064.4,2.284]
[1772042845656,1.2105365,2065.2,2064.5,30.0]
[1772042847479,9.64376217,2065.0,2064.4,0.001]
[1772042847663,9.64376217,2065.0,2064.1,2.291]
[1772042847664,6.35307184,2064.9,2064.1,2.291]
[1772042848174,8.26907184,2065.2,2064.2,30.0]
[1772042848775,0.45163078,2065.1,2064.3,30.0]
[1772042848981,0.45163078,2065.0,2064.3,30.0]
[1772042849162,8.26907184,2065.2,2064.3,30.0]
[1772042849163,0.45163078,2064.9,2064.3,30.0]
[1772042849348,0.45163078,2064.8,2064.2,30.0]
[1772042849677,7.56372559,2065.0,2064.3,2.297]
[1772042849868,0.45164435,2064.9,2064.3,2.297]
[1772042850068,7.56372559,2065.0,2064.3,2.298]
[1772042850069,0.45164435,2064.8,2064.3,2.298]
[1772042850264,7.56372559,2065.0,2064.3,2.298]
[1772042850568,0.45169398,2064.9,2064.3,2.298]
[1772042850766,0.45169398,2064.8,2064.3,2.298]
[1772042850959,7.56372559,2065.0,2064.3,2.298]
[1772042851275,0.45169382,2064.9,2064.3,2.298]
[1772042851481,0.45169382,2064.8,2064.3,2.298]
[1772042851684,1.21061683,2065.1,2064.3,3.50903181]
[1772042851976,0.4517515,2065.0,2064.3,3.50903181]
[1772042852160,0.4517515,2064.9,2064.3,3.50903181]
[1772042852357,1.21061683,2065.1,2064.3,3.50903181]
[1772042852676,0.45187938,2065.0,2064.4,30.0]
[1772042852981,1.21061683,2065.1,2064.4,30.0]
[1772042853179,1.21244586,2065.4,2064.6,36.09023253]
[1772042853383,5.97881413,2065.1,2064.1,0.001]
[1772042853702,1.21071238,2064.9,2064.3,30.0]
[1772042854351,7.18951488,2065.0,2064.3,30.0]
[1772042854691,1.21057698,2065.2,2064.4,30.0]
[1772042854852,0.45182651,2065.1,2064.4,30.0]
[1772042855176,7.18939111,2065.2,2064.4,9.347]
[1772042855381,5.97881413,2065.0,2064.5,2.31]
[1772042855684,1.21077101,2064.8,2064.3,2.312]
[1772042856354,0.45232906,2064.7,2064.1,0.001]
[1772042856560,1.21077101,2064.8,2064.2,2.313]
[1772042857381,0.45249145,2064.7,2064.2,2.313]
[1772042857678,1.21077101,2064.8,2064.2,2.313]
[1772042857885,0.45245857,2064.7,2064.2,2.313]
[1772042858085,1.21047789,2065.3,2064.4,6.09023253]
[1772042858382,0.39234647,2065.2,2064.7,36.09023253]
[1772042858680,0.002,2065.4,2064.9,30.0]
[1772042859063,0.002,2065.4,2064.9,36.09023253]
[1772042859383,5.98081413,2065.6,2064.7,6.09023253]
[1772042859583,0.002,2065.6,2065.0,30.0]
[1772042859764,0.002,2065.6,2065.1,1.21059512]
[1772042860263,0.002,2065.6,2065.2,2.333]
[1772042860804,0.002,2065.3,2065.2,2.333]
[1772042860979,0.002,2065.6,2065.2,2.333]
[1772042861180,0.001,2065.6,2065.3,30.0]
[1772042861552,0.001,2065.6,2065.3,36.09023253]
[1772042861752,0.527,2066.0,2065.5,1.21036068]
[1772042861983,0.527,2066.0,2065.6,2.334]
[1772042862667,0.527,2066.0,2065.7,30.0]
[1772042863173,2.48522115,2065.6,2064.8,30.0]
[1772042863371,2.48522115,2065.6,2064.9,2.337]
[1772042863688,8.46403528,2065.6,2065.0,2.337]
[1772042863985,8.46403528,2065.6,2065.1,2.337]
[1772042863986,1.21036068,2065.5,2065.1,2.337]
[1772042864156,8.46403528,2065.6,2065.0,2.337]
[1772042864356,1.21030013,2065.7,2065.0,2.34]
[1772042864590,1.21022865,2065.8,2065.0,2.34]
[1772042864893,7.18904278,2065.8,2065.0,2.34]
[1772042865097,1.73711098,2066.0,2065.1,30.0]
[1772042865467,0.527,2066.0,2065.1,30.0]
[1772042865665,0.527,2066.0,2065.2,36.09023253]
[1772042865866,7.71589475,2066.0,2065.4,30.0]
[1772042866090,5.97881413,2065.9,2065.2,2.34]
[1772042866279,5.97881413,2065.9,2064.6,6.09023253]
[1772042866593,5.97881413,2065.7,2064.9,22.626]
[1772042867692,7.71589475,2066.0,2065.0,30.0]
[1772042867890,7.71589475,2066.0,2065.1,1.21059512]
[1772042868079,7.71589475,2066.0,2065.2,2.343]
[1772042868899,5.97881413,2065.9,2065.2,2.343]
[1772042869795,5.97881413,2065.9,2065.2,3.55350271]
[1772042869796,1.21018491,2065.8,2065.2,3.55350271]
[1772042870394,0.45103978,2065.7,2065.2,3.55350271]
[1772042870700,7.1889861,2065.9,2065.3,30.0]
[1772042870879,7.1889861,2065.9,2065.2,3.55350271]
[1772042870880,0.45066649,2065.8,2065.2,3.55350271]
[1772042871064,6.4295142,2065.7,2064.7,30.0]
[1772042871265,5.77591148,2065.8,2064.6,1.21088017]
[1772042871266,5.97881413,2065.5,2064.6,1.21088017]
[1772042871496,6.4295142,2065.4,2064.7,2.339]
[1772042871800,0.45070007,2065.3,2064.7,2.339]
[1772042872095,1.16119731,2065.3,2064.7,2.339]
[1772042872399,5.97881413,2065.2,2064.4,0.001]
[1772042873500,5.97881413,2065.2,2065.1,0.001]
[1772042873696,5.97881413,2065.2,2064.9,0.001]
[1772042873994,1.21059512,2065.1,2064.9,0.001]
[1772042874366,7.18939256,2065.2,2064.9,0.001]
[1772042875608,7.18939256,2065.2,2064.4,0.001]
[1772042876995,1.21057843,2065.2,2064.5,30.0]
[1772042877603,1.21057843,2065.2,2064.4,0.001]
[1772042877778,1.21057843,2065.2,2064.5,30.0]
[1772042878301,4.84184336,2065.4,2064.6,1.2108883]
[1772042879271,6.76184336,2065.4,2064.6,1.2108883]
[1772042880000,4.84184336,2065.4,2064.6,1.2108883]
[1772042880205,11.05432467,2065.4,2064.5,30.0]
[1772042881702,7.42276239,2065.7,2064.8,36.23926792]
[1772042882001,1.21028108,2065.7,2065.0,30.0]
[1772042882577,1.21028108,2065.7,2065.1,30.0]
[1772042882904,1.21218791,2065.8,2065.1,30.0]
[1772042883072,1.21218791,2065.8,2065.2,30.0]
[1772042883073,1.21218965,2065.8,2065.2,30.0]
[1772042883270,0.002,2065.8,2065.3,2.347]
[1772042883873,0.002,2065.8,2065.2,30.0]
[1772042884088,0.94172651,2065.8,2065.3,2.348]
[1772042884308,0.94172651,2065.8,2065.1,22.002]
[1772042884512,4.84073966,2065.9,2065.2,9.538]
[1772042884721,4.84073966,2065.9,2065.2,10.74853444]
[1772042884882,1.21012633,2065.9,2065.3,30.0]
[1772042885487,1.21012633,2065.9,2065.3,2.35]
[1772042885810,1.21012633,2065.9,2065.4,0.001]
[1772042886020,0.002,2065.8,2065.4,0.001]
[1772042886614,799.72399999,2065.9,2065.4,1.21141928]
[1772042887214,738.35408354,2065.9,2065.6,6.23926792]
[1772042887400,736.46408354,2065.9,2065.7,2.352]
[1772042887602,734.30408354,2065.9,2065.7,2.352]
[1772042887792,732.14408354,2065.9,2065.7,2.352]
[1772042888138,729.17408354,2065.9,2065.7,2.352]
[1772042888292,727.28408354,2065.9,2065.7,2.352]
[1772042888492,725.12408354,2065.9,2065.7,3.56219035]
[1772042888801,725.12408354,2065.9,2065.7,2.352]
[1772042888802,722.15408354,2065.9,2065.7,2.352]
[1772042889011,722.15408354,2065.9,2065.6,2.70507816]
[1772042889012,723.36421747,2065.9,2065.6,2.70507816]
[1772042889427,688.66008354,2065.9,2065.5,8.59326792]
[1772042889735,621.48169704,2065.9,2065.5,9.8036173]
[1772042890093,509.00520224,2065.9,2065.6,6.23926792]
[1772042890292,472.25774844,2065.9,2065.6,6.23926792]
[1772042890514,335.8898569,2065.9,2065.7,9.79700127]
[1772042890696,305.90022927,2065.9,2065.7,8.58675777]
[1772042890892,304.01022927,2065.9,2065.7,8.58675777]
[1772042891120,300.54222929,2065.9,2065.7,8.58675777]